bitfinex-derivatives/quotes_ETHF0:USTF0_20251006
["timestamp","ask_amount","ask_price","bid_price","bid_amount"]
[1759732350507,1.82957768,4567.1,4567.0,0.4239]
[1759732351521,1.60957768,4567.1,4567.0,0.7606]
[1759732351819,1.82957768,4567.1,4567.0,0.211]
[1759732352718,1.82957768,4567.1,4566.6,0.7606]
[1759732352719,0.5344,4566.7,4566.6,0.7606]
[1759732352912,1.22287768,4566.7,4566.6,0.7606]
[1759732353119,1.00287768,4566.7,4566.6,0.7606]
[1759732353420,1.22287768,4566.7,4566.6,0.7606]
[1759732353619,1.43557768,4566.7,4566.6,0.4239]
[1759732353815,1.43557768,4566.7,4566.6,0.211]
[1759732354012,0.4436,4566.4,4566.3,3.77042947]
[1759732354211,0.7611,4566.4,4566.3,3.43372947]
[1759732354416,1.22968967,4566.4,4566.3,3.97562947]
[1759732354620,1.44968967,4566.4,4566.3,3.97562947]
[1759732354820,1.44968967,4566.4,4566.3,3.43372947]
[1759732355021,1.44968967,4566.4,4566.3,3.64352947]
[1759732355421,1.22968967,4566.4,4566.3,3.64352947]
[1759732356019,1.44968967,4566.4,4566.3,3.97562947]
[1759732357621,1.44968967,4566.4,4566.3,3.21012947]
[1759732357826,1.44968967,4566.4,4566.3,0.00232947]
[1759732360126,1.22968967,4566.4,4566.3,0.76782947]
[1759732360431,0.7611,4567.3,4567.2,0.2236]
[1759732360625,1.44866985,4567.3,4567.2,0.7655]
[1759732361729,0.61913,4566.8,4566.7,0.2236]
[1759732361921,1.84269985,4566.8,4566.7,0.2236]
[1759732362624,1.44866985,4566.8,4566.7,0.7655]
[1759732363424,0.91266985,4566.8,4566.7,0.7655]
[1759732363625,1.44866985,4566.8,4566.7,0.7655]
[1759732363820,1.44866985,4566.8,4566.7,0.2236]
[1759732364029,1.44866985,4566.8,4566.7,0.7655]
[1759732364530,1.22866985,4566.8,4566.7,0.7655]
[1759732364730,1.44866985,4566.8,4566.7,0.7655]
[1759732365133,0.46756985,4566.8,4566.7,0.7655]
[1759732365429,0.22,4566.8,4566.7,0.7655]
[1759732365632,0.68756985,4566.8,4566.7,0.7655]
[1759732366332,0.46756985,4566.8,4566.7,0.7655]
[1759732366536,0.39399,4567.3,4566.9,0.7655]
[1759732366838,0.7611,4567.0,4566.9,0.4334]
[1759732367032,1.22909339,4567.0,4566.9,0.4334]
[1759732367435,1.22909339,4567.0,4566.9,0.7655]
[1759732367636,0.4169,4566.6,4566.5,0.7731]
[1759732367939,1.43139339,4566.6,4566.5,0.7731]
[1759732369636,0.39405,4566.5,4566.4,3.2078]
[1759732369841,2.49683775,4566.5,4566.4,3.2078]
[1759732370940,2.49683775,4566.5,4566.3,0.00232947]
[1759732371137,1.21139339,4566.4,4566.3,0.00232947]
[1759732373238,1.21139339,4566.4,4566.3,0.77392947]
[1759732375041,0.67989339,4566.4,4566.3,3.98172947]
[1759732375236,0.5384,4567.0,4566.9,0.441]
[1759732375438,1.2266647,4567.0,4566.9,0.7716]
[1759732375943,1.0066647,4567.0,4566.9,0.7716]
[1759732376343,1.2266647,4567.0,4566.9,0.7716]
[1759732376647,1.0066647,4567.0,4566.9,0.7716]
[1759732376848,1.2266647,4567.0,4566.9,0.7716]
[1759732377447,0.4169,4566.6,4566.5,0.7716]
[1759732377648,1.4316647,4566.6,4566.5,0.7716]
[1759732378849,1.4316647,4566.6,4566.5,0.441]
[1759732379248,1.4316647,4566.6,4566.5,0.7716]
[1759732379750,0.9634,4566.6,4566.5,0.7716]
[1759732379954,1.4316915,4566.6,4566.5,0.7716]
[1759732382141,0.4682915,4566.6,4566.5,0.8952]
[1759732382344,0.6882915,4566.6,4566.5,0.8952]
[1759732382847,0.4682915,4566.6,4566.5,0.8952]
[1759732383047,0.6882915,4566.6,4566.5,0.8952]
[1759732384552,0.6882915,4566.6,4566.5,41.6952]
[1759732384950,1.0147915,4566.6,4566.5,41.6952]
[1759732385148,0.7947915,4566.6,4566.5,40.8]
[1759732385354,1.0147915,4566.6,4566.5,40.8]
[1759732385950,0.7947915,4566.6,4566.5,41.1306]
[1759732386257,1.0147915,4566.6,4566.5,41.1306]
[1759732387258,0.6882915,4566.6,4566.5,41.2542]
[1759732387954,0.4682915,4566.6,4566.5,41.2542]
[1759732388355,0.6882915,4566.6,4566.5,41.2542]
[1759732389555,0.22,4566.6,4566.5,41.2542]
[1759732389951,0.0016917,4567.5,4567.4,0.2156]
[1759732390159,0.2216917,4567.5,4567.4,3.9794]
[1759732390359,0.69001205,4567.5,4567.4,3.9794]
[1759732391564,0.90191205,4567.5,4567.4,3.9794]
[1759732391761,1.00841205,4567.5,4567.4,3.9794]
[1759732392063,1.22841205,4567.5,4567.4,3.9794]
[1759732393564,1.00841205,4567.5,4567.4,3.9794]
[1759732393766,1.22841205,4567.5,4567.4,3.9794]
[1759732393964,0.47001205,4567.5,4567.4,3.9794]
[1759732394163,0.69001205,4567.5,4567.4,3.9794]
[1759732395261,0.69001205,4567.5,4567.4,44.7794]
[1759732396256,0.2216917,4567.5,4567.4,44.7794]
[1759732398461,0.5286917,4567.5,4567.4,44.7794]
[1759732398669,0.6580917,4567.5,4567.4,44.4488]
[1759732398969,1.0835917,4567.5,4567.4,3.6488]
[1759732399267,1.0835917,4567.5,4567.4,3.9779]
[1759732400768,1.4775617,4567.5,4567.4,3.9779]
[1759732400970,1.4775617,4567.5,4567.4,0.441]
[1759732401170,1.94483941,4567.5,4567.4,0.2156]
[1759732401465,1.55086941,4567.5,4567.4,0.2156]
[1759732401863,2.31846377,4567.5,4567.4,0.2156]
[1759732402266,1.20146941,4567.5,4567.4,0.7615]
[1759732402471,0.9541917,4567.5,4567.4,0.7615]
[1759732402672,0.0016917,4567.5,4567.4,0.7615]
[1759732403068,0.2216917,4567.5,4567.4,0.7615]
[1759732403268,0.0016917,4567.5,4567.4,0.7615]
[1759732403466,0.2216917,4567.5,4567.4,0.7615]
[1759732404178,0.0016917,4567.5,4567.4,0.7615]
[1759732404370,0.2216917,4567.5,4567.4,0.7615]
[1759732406276,0.0016917,4567.5,4567.4,0.7615]
[1759732406775,0.2216917,4567.5,4567.4,0.7615]
[1759732407579,0.0016917,4567.5,4567.4,0.7615]
[1759732407777,0.2216917,4567.5,4567.4,0.7615]
[1759732408177,0.0016917,4567.5,4567.4,0.7615]
[1759732408377,0.9541917,4567.5,4567.4,0.7615]
[1759732408676,0.7325,4566.8,4566.7,1.16353]
[1759732408875,0.9525,4566.8,4566.7,1.16353]
[1759732409075,0.9525,4566.8,4566.7,41.5695]
[1759732409971,0.9525,4566.8,4566.7,41.0236]
[1759732410374,0.9525,4566.8,4566.7,41.3527]
[1759732411578,0.1310917,4567.5,4567.4,0.2168]
[1759732411772,0.46911703,4567.5,4567.4,0.7695]
[1759732412078,0.2216917,4567.5,4567.4,0.7695]
[1759732412273,0.0016917,4567.5,4567.4,0.7695]
[1759732412475,13.52941176,4568.4,4568.3,1.1634]
[1759732412677,13.52941176,4568.4,4568.3,5.13879436]
[1759732413076,13.52941176,4568.4,4568.3,45.93879436]
[1759732413276,13.52941176,4568.4,4568.3,45.1712]
[1759732413483,13.53155959,4568.4,4568.3,45.1712]
[1759732414777,13.53155959,4568.4,4568.3,45.34803609]
[1759732415481,13.75155959,4568.4,4568.3,45.34803609]
[1759732416776,13.53155959,4568.4,4568.3,51.11563045]
[1759732417079,13.53155959,4568.4,4568.3,51.33563045]
[1759732419284,7.2398015,4568.4,4568.3,51.00653045]
[1759732419584,0.1342,4568.5,4568.3,50.56613045]
[1759732419784,0.1342,4568.5,4568.3,9.76613045]
[1759732420084,0.1342,4569.0,4568.9,0.39384]
[1759732420281,0.1342,4569.0,4568.9,4.58923436]
[1759732420481,0.13592463,4569.0,4568.9,4.58923436]
[1759732420878,0.13592463,4569.0,4568.9,45.38923436]
[1759732421681,0.44342463,4569.0,4568.9,45.38923436]
[1759732422591,0.44342463,4569.0,4568.9,45.16923436]
[1759732422884,0.44342463,4569.0,4568.9,44.40164]
[1759732424089,0.44342463,4569.0,4568.9,45.16923436]
[1759732424690,0.44342463,4569.0,4568.9,44.40164]
[1759732426991,0.44342463,4569.0,4568.9,45.16923436]
[1759732429087,0.44342463,4569.0,4568.9,44.40164]
[1759732429396,0.17112463,4569.0,4568.9,44.40164]
[1759732430297,0.17336264,4569.0,4568.9,44.40164]
[1759732432692,0.17336264,4569.0,4568.9,44.62164]
[1759732433505,0.1342,4569.5,4569.4,0.3938]
[1759732433702,0.00924188,4569.7,4569.6,0.39378]
[1759732434005,0.42894188,4569.7,4569.6,0.61378]
[1759732434204,0.22034188,4569.7,4569.6,0.61378]
[1759732434501,0.01132584,4569.7,4569.6,42.33633003]
[1759732435403,0.1342,4570.0,4569.9,0.39376]
[1759732435599,0.4667,4570.0,4569.9,3.82156]
[1759732435806,0.6778,4570.0,4569.9,3.82156]
[1759732436204,0.6778,4570.0,4569.9,46.36182074]
[1759732436404,0.67936263,4570.0,4569.9,46.36182074]
[1759732438602,0.67936263,4570.0,4569.9,46.14182074]
[1759732438803,0.67936263,4570.0,4569.9,46.36182074]
[1759732439306,0.67936263,4570.0,4569.9,46.14182074]
[1759732439499,0.67936263,4570.0,4569.9,46.36182074]
[1759732440008,0.67936263,4570.0,4569.9,44.40156]
[1759732440208,0.67936263,4570.0,4569.9,44.62156]
[1759732442004,0.09923521,4570.5,4570.4,0.39372]
[1759732442203,0.1277,4570.5,4570.4,3.4278]
[1759732442407,0.5474,4570.5,4570.4,3.2078]
[1759732442804,0.5474,4570.5,4570.4,44.0078]
[1759732443005,0.54973665,4570.5,4570.4,44.0078]
[1759732443512,0.4197,4569.7,4569.6,3.60428959]
[1759732443904,0.4197,4569.7,4569.6,44.40428959]
[1759732444108,0.7522,4569.7,4569.6,44.40428959]
[1759732444302,0.7522,4569.7,4569.6,44.01050959]
[1759732447118,0.7522,4569.7,4569.6,40.80270959]
[1759732448619,0.7522,4568.7,4568.6,0.39387]
[1759732449519,0.23522501,4568.7,4568.6,41.41647149]
[1759732450419,0.01409591,4568.7,4568.6,41.41647149]
[1759732450609,0.01409591,4568.7,4568.6,46.41647149]
[1759732450805,0.3388,4569.0,4568.9,0.39384]
[1759732451005,0.5474,4569.0,4568.8,1.77428313]
[1759732451210,0.5474,4569.0,4568.8,0.39385]
[1759732452917,0.7522,4568.9,4568.8,0.39385]
[1759732457120,0.4197,4568.9,4568.6,40.80260149]
[1759732457317,0.7522,4568.7,4568.6,0.00260149]
[1759732457823,0.7522,4568.7,4568.6,40.80260149]
[1759732459724,5.7522,4568.7,4568.6,40.80260149]
[1759732461924,0.4341,4568.1,4568.0,3.2078]
[1759732462123,0.7639,4568.1,4568.0,3.2078]
[1759732462623,0.3298,4568.1,4568.0,3.2078]
[1759732462928,0.3298,4568.1,4568.0,44.00941936]
[1759732463817,3.353,4569.0,4568.9,0.39384]
[1759732464024,0.3473,4569.0,4568.9,0.39384]
[1759732464423,0.3473,4569.0,4568.9,41.19384]
[1759732465726,0.6771,4569.0,4568.9,41.19384]
[1759732466223,0.6771,4569.0,4568.9,40.8]
[1759732468222,0.4592,4569.0,4568.9,41.71984044]
[1759732468426,0.4592,4569.0,4568.9,41.93984044]
[1759732468733,0.4592,4569.0,4568.9,46.93984044]
[1759732469328,0.1277,4569.5,4569.4,0.3938]
[1759732469534,0.0363,4569.5,4569.4,3.6016]
[1759732470023,0.0363,4569.5,4569.4,3.8216]
[1759732470329,0.1277,4570.0,4569.9,0.39376]
[1759732470726,0.1277,4570.0,4569.9,3.60156]
[1759732470924,0.5618,4570.0,4569.9,3.60156]
[1759732471125,0.3456,4570.0,4569.9,44.40156]
[1759732471324,0.6754,4570.0,4569.9,44.40156]
[1759732472926,0.4575,4570.0,4569.9,44.40156]
[1759732475133,0.4575,4570.0,4569.9,44.62156]
[1759732476029,0.4575,4570.0,4569.9,40.8]
[1759732476432,0.4575,4570.0,4569.9,44.0078]
[1759732477640,0.4575,4570.0,4569.9,40.8]
[1759732482836,0.4575,4570.0,4569.9,44.0078]
[1759732483833,0.4575,4570.0,4569.9,40.8]
[1759732489448,0.6775,4570.0,4569.9,40.8]
[1759732490441,0.4575,4570.0,4569.9,40.8]
[1759732491950,0.6775,4570.0,4569.9,40.8]
[1759732497337,1.14478332,4570.0,4569.9,40.8]
[1759732500547,0.2264,4569.8,4569.7,0.39377]
[1759732500744,0.2264,4569.8,4569.4,3.2078]
[1759732500745,0.3306,4569.7,4569.5,0.39379]
[1759732500940,0.7823,4569.6,4569.5,0.39379]
[1759732501145,0.7823,4569.6,4569.5,41.19379]
[1759732501345,0.7823,4569.6,4569.5,40.8]
[1759732501852,0.7823,4569.6,4569.5,41.19379]
[1759732501853,0.3306,4569.6,4569.5,41.19379]
[1759732502053,0.5506,4569.6,4569.5,41.19379]
[1759732502955,0.3306,4569.6,4569.5,41.19379]
[1759732507162,0.3306,4569.6,4569.5,40.8]
[1759732508563,0.13173665,4570.5,4570.4,0.39372]
[1759732508862,0.06843745,4570.5,4570.4,4.36799729]
[1759732509263,0.06843745,4570.5,4570.4,45.16799729]
[1759732509468,0.06843745,4570.5,4570.4,44.40152]
[1759732509768,0.06096255,4571.0,4570.4,50.54075458]
[1759732509965,0.05,4571.9,4571.4,0.39363]
[1759732510160,0.05,4571.9,4571.4,3.60143]
[1759732510361,0.05,4571.9,4571.4,3.2078]
[1759732510559,0.4648,4571.5,4571.4,44.0078]
[1759732510766,0.46757039,4571.5,4571.4,44.01047958]
[1759732514365,0.46757039,4571.5,4571.4,44.77695687]
[1759732515972,0.46757039,4571.5,4571.4,44.01047958]
[1759732516171,0.46757039,4571.5,4571.4,44.77695687]
[1759732517074,0.3306,4572.4,4572.3,0.39355]
[1759732517260,0.3306,4572.4,4572.3,3.97427729]
[1759732517771,0.3306,4572.4,4572.3,44.77427729]
[1759732517962,0.33315863,4572.4,4572.3,44.77427729]
[1759732518161,0.52766,4573.5,4572.3,44.77427729]
[1759732518162,0.1342,4573.5,4572.3,49.77427729]
[1759732518362,0.1342,4573.5,4572.8,3.97427729]
[1759732518666,0.1342,4573.5,4572.8,4.36778729]
[1759732519368,0.02483862,4572.9,4572.8,4.36778729]
[1759732519578,0.02483862,4572.9,4572.8,3.60131]
[1759732519766,0.02483862,4572.9,4572.8,4.36778729]
[1759732520069,0.02483862,4572.9,4572.8,4.58778729]
[1759732520269,0.02483862,4572.9,4572.8,3.82131]
[1759732520473,0.35923862,4572.9,4572.8,4.58778729]
[1759732520663,0.35923862,4572.9,4572.8,45.38778729]
[1759732520867,0.35923862,4572.9,4572.8,44.0078]
[1759732521577,0.35923862,4572.9,4572.8,44.77427729]
[1759732521873,0.35923862,4572.9,4572.8,44.0078]
[1759732522069,0.35923862,4572.9,4572.8,44.77427729]
[1759732523166,0.35923862,4572.9,4572.8,41.56647729]
[1759732523369,0.7843,4571.9,4571.8,3.2078]
[1759732523574,0.466,4571.5,4571.4,0.39630958]
[1759732523871,0.466,4571.5,4571.4,43.69827953]
[1759732524081,0.466,4571.5,4571.4,41.96278687]
[1759732524373,0.466,4571.5,4571.4,41.56915687]
[1759732527069,0.466,4571.5,4571.4,40.80267958]
[1759732527271,0.3344,4571.9,4571.8,0.39359]
[1759732527576,0.466,4572.5,4572.4,0.39354]
[1759732527875,0.466,4572.5,4572.4,41.19354]
[1759732529078,0.466,4572.5,4572.4,40.8]
[1759732533570,0.02483862,4572.9,4572.7,0.39352]
[1759732533777,0.3344,4572.8,4572.7,0.39352]
[1759732535280,0.3344,4572.8,4572.7,41.19352]
[1759732535778,0.02483862,4572.9,4572.7,41.19352]
[1759732536178,0.3288,4572.8,4572.7,41.19352]
[1759732536583,0.02483862,4572.9,4572.7,46.19352]
[1759732536782,0.3288,4573.4,4573.3,0.39346]
[1759732537081,0.5408,4573.4,4573.3,0.39346]
[1759732537279,0.7643,4573.4,4573.3,0.39346]
[1759732537478,0.5408,4573.4,4573.3,40.8]
[1759732537675,0.54314354,4573.4,4573.3,41.19347]
[1759732537876,0.33114354,4573.4,4573.3,41.19347]
[1759732538279,0.33114354,4573.4,4573.3,40.8]
[1759732538480,0.1321,4573.0,4572.8,0.3935]
[1759732538680,0.5408,4572.9,4572.8,0.3935]
[1759732538879,0.3288,4572.9,4572.8,0.3935]
[1759732539288,0.00234354,4573.4,4572.9,0.98376]
[1759732539582,0.00234354,4573.4,4573.3,41.19347]
[1759732541475,0.33114354,4573.4,4573.3,41.19347]
[1759732542681,0.1321,4574.0,4573.6,0.39344]
[1759732542882,14.86661513,4573.7,4573.6,0.39344]
[1759732543284,15.07861513,4573.7,4573.6,41.19344]
[1759732543484,15.08048125,4573.7,4573.6,41.19344]
[1759732544098,15.08048125,4573.7,4573.6,40.8]
[1759732544384,15.30048125,4573.7,4573.6,40.8]
[1759732544986,15.08048125,4573.7,4573.6,40.8]
[1759732545191,15.30048125,4573.7,4573.6,40.8]
[1759732545390,15.08848125,4573.7,4573.6,40.8]
[1759732545585,13.90242546,4573.7,4573.6,46.02]
[1759732545791,3.52692374,4573.7,4573.6,46.02]
[1759732545986,2.99609374,4573.7,4573.6,46.02]
[1759732546591,2.04591374,4573.7,4573.6,46.02]
[1759732547290,0.55083374,4573.7,4573.6,46.02]
[1759732547488,0.55083374,4573.7,4573.6,45.8]
[1759732547688,0.55083374,4573.7,4573.6,41.02]
[1759732548790,0.55083374,4573.7,4573.6,45.8]
[1759732548990,0.55083374,4573.7,4573.6,40.8]
[1759732549200,0.55083374,4573.7,4573.6,41.02]
[1759732549395,0.55083374,4573.7,4573.6,40.8]
[1759732549596,0.55083374,4573.7,4573.6,41.02]
[1759732550393,0.55083374,4573.7,4573.6,46.02]
[1759732550894,0.55083374,4573.7,4573.6,41.02]
[1759732551895,0.55083374,4573.7,4573.6,40.8]
[1759732552094,0.55083374,4573.7,4573.6,41.02]
[1759732552687,3.74e-06,4573.7,4573.6,46.02]
[1759732553089,3.74e-06,4573.7,4573.6,45.8]
[1759732553296,3.74e-06,4573.7,4573.6,46.02]
[1759732553591,3.74e-06,4573.7,4573.6,40.8]
[1759732553798,0.00154215,4573.7,4573.6,41.02]
[1759732554004,0.00154215,4573.7,4573.6,40.8]
[1759732554195,0.00154215,4573.7,4573.6,41.02]
[1759732555392,0.00154215,4573.7,4573.6,40.8]
[1759732555592,0.00154215,4573.7,4573.6,41.02]
[1759732556400,0.00154215,4573.7,4573.6,40.8]
[1759732557002,5.00154215,4573.7,4573.6,40.8]
[1759732557196,5.00154215,4573.7,4572.7,3.2078]
[1759732557496,0.8707,4572.3,4572.2,3.60136]
[1759732557797,0.8707,4572.3,4572.2,44.0078]
[1759732558098,0.4001,4572.3,4572.2,44.0078]
[1759732558301,0.3706,4573.0,4572.9,0.3935]
[1759732558501,0.3706,4573.0,4572.9,3.6013]
[1759732558698,0.5967,4573.0,4572.9,3.6013]
[1759732559000,0.5967,4573.0,4572.9,44.4013]
[1759732559198,0.1261,4573.0,4572.9,44.4013]
[1759732560294,0.5262,4573.0,4572.9,44.4013]
[1759732563407,0.00621,4573.0,4572.9,44.4013]
[1759732563606,0.13231,4573.0,4572.9,44.4013]
[1759732564903,0.13231,4573.0,4572.9,44.0078]
[1759732566599,0.13231,4573.0,4572.9,44.4013]
[1759732566799,0.13231,4573.0,4572.9,44.0078]
[1759732568309,5.13231,4573.0,4572.9,40.8]
[1759732568810,5.35231,4573.0,4572.9,40.8]
[1759732569106,0.13231,4573.0,4572.9,40.8]
[1759732571211,5.13231,4573.0,4572.9,40.8]
[1759732572205,5.13231,4573.0,4572.9,41.1935]
[1759732572411,5.13231,4573.0,4572.9,40.8]
[1759732573114,5.35231,4573.0,4572.9,40.8]
[1759732574211,0.4706,4571.9,4571.8,3.60139]
[1759732574410,0.8707,4571.9,4571.8,3.2078]
[1759732575306,0.8707,4571.9,4571.8,44.0078]
[1759732577612,0.4255,4571.5,4571.4,0.00267958]
[1759732577917,0.825,4571.5,4571.4,3.21047958]
[1759732578115,0.1261,4572.0,4571.4,3.21047958]
[1759732578116,0.1261,4572.0,4571.4,44.01047958]
[1759732578416,0.1261,4572.0,4571.9,3.60139]
[1759732578613,0.06947889,4572.5,4572.4,0.39354]
[1759732578815,0.05662111,4573.0,4572.9,0.3935]
[1759732579210,0.05662111,4573.0,4572.9,44.4013]
[1759732580418,0.45612111,4573.0,4572.9,44.4013]
[1759732584022,0.45612111,4573.0,4572.9,40.8]
[1759732584220,0.45612111,4573.0,4572.9,41.1935]
[1759732585918,1.11e-06,4573.0,4572.9,44.4013]
[1759732586219,1.11e-06,4573.0,4572.9,44.6213]
[1759732586813,1.11e-06,4573.5,4573.4,0.39346]
[1759732587017,1.11e-06,4573.5,4573.4,3.82226]
[1759732587615,0.51420111,4573.5,4573.4,44.2288]
[1759732587828,0.51420111,4573.5,4573.4,44.0078]
[1759732588324,0.91370111,4573.5,4573.4,44.0078]
[1759732590035,0.39950111,4573.5,4573.4,44.0078]
[1759732591225,1.11e-06,4573.5,4573.4,44.0078]
[1759732591540,9.52e-06,4574.0,4573.9,0.39341]
[1759732591729,9.52e-06,4574.0,4573.9,3.82221]
[1759732592525,0.00278714,4574.0,4573.9,3.82221]
[1759732593037,0.16030714,4574.0,4573.9,44.62221]
[1759732593435,0.55980714,4574.0,4573.9,44.62221]
[1759732594938,3.15070245,4575.3,4574.4,0.98342]
[1759732595139,3.15070245,4575.3,4575.2,0.3933]
[1759732595338,0.3067,4575.3,4575.2,0.3933]
[1759732595539,3.2078,4575.8,4575.4,0.39329]
[1759732595833,0.755,4575.5,4575.4,0.39514968]
[1759732596036,0.75751086,4575.5,4575.4,0.56636817]
[1759732596338,0.75751086,4575.5,4575.4,41.36636817]
[1759732596538,0.16281086,4575.5,4575.4,41.36636817]
[1759732596938,0.63041086,4575.5,4575.4,41.36636817]
[1759732597238,0.5623,4576.0,4575.9,0.39324]
[1759732597429,0.869,4576.0,4575.9,0.39324]
[1759732597634,0.5623,4576.0,4575.9,0.39324]
[1759732597844,1.157,4576.0,4575.9,41.19324]
[1759732598234,1.15938048,4576.0,4575.9,41.19324]
[1759732598838,1.15938048,4576.0,4575.9,40.8]
[1759732599141,0.56468048,4576.0,4575.9,40.8]
[1759732601130,0.10566048,4576.0,4575.9,40.8]
[1759732601334,0.1786,4576.5,4576.4,0.3932]
[1759732601534,3.2078,4576.9,4576.8,0.39316]
[1759732601843,0.1786,4577.0,4576.8,0.39316]
[1759732602032,0.1786,4577.0,4576.9,40.8]
[1759732602238,0.7733,4577.5,4577.4,0.39311]
[1759732602434,0.77483711,4577.5,4577.4,0.39311]
[1759732602839,0.18013711,4577.5,4577.4,0.39311]
[1759732603039,0.00153711,4577.5,4577.4,41.19311]
[1759732603336,0.64773711,4577.5,4577.4,41.19311]
[1759732604138,0.64773711,4577.5,4577.4,40.8]
[1759732606342,5.86773711,4577.5,4576.2,3.2078]
[1759732606543,0.4676,4576.4,4576.2,3.5123]
[1759732606743,0.4853,4576.5,4576.4,0.5851]
[1759732606940,0.1786,4577.0,4576.9,0.3038]
[1759732607140,0.1786,4577.0,4576.9,0.5851]
[1759732607345,0.4676,4577.4,4576.9,42.08275]
[1759732607541,0.7743,4577.2,4577.1,0.69693]
[1759732607746,0.4676,4577.2,4577.1,1.29523]
[1759732608049,3.20933711,4577.5,4577.4,1.29161]
[1759732608250,3.91523711,4577.5,4577.4,0.97461]
[1759732608451,4.65423711,4577.5,4577.4,0.97461]
[1759732608640,4.43323711,4577.5,4577.4,0.97461]
[1759732609044,4.65423711,4577.5,4577.4,0.97461]
[1759732610441,0.45793711,4577.5,4577.4,0.97461]
[1759732610653,0.00153711,4577.5,4577.4,1.29161]
[1759732611151,0.00153711,4577.5,4577.4,42.09161]
[1759732613252,0.45793711,4577.5,4577.4,42.09161]
[1759732614850,0.00153711,4577.5,4577.4,42.09161]
[1759732615047,0.1786,4578.5,4577.4,42.09161]
[1759732615048,11.82694798,4578.9,4578.8,1.0545]
[1759732615249,12.10954798,4578.9,4578.8,1.0545]
[1759732615448,12.10954798,4578.9,4578.8,0.7664]
[1759732615842,11.51724798,4578.9,4578.8,1.0545]
[1759732616044,17.11170376,4578.9,4578.8,0.00265711]
[1759732616251,17.33170376,4578.9,4578.8,0.00265711]
[1759732616445,17.33170376,4578.9,4578.8,40.80265711]
[1759732616755,0.5923,4578.2,4578.0,0.39306]
[1759732616942,4.0201,4578.1,4578.0,0.39306]
[1759732617150,4.4765,4578.1,4578.0,0.86606]
[1759732617348,4.4765,4578.1,4578.0,1.15946]
[1759732617646,4.4765,4578.1,4578.0,41.96125882]
[1759732617851,4.4765,4578.1,4578.0,40.80179882]
[1759732618052,9.4765,4578.1,4578.0,40.80179882]
[1759732618647,9.2565,4578.1,4578.0,40.80179882]
[1759732618848,3.8001,4578.1,4578.0,41.66785882]
[1759732619051,3.8001,4578.1,4578.0,41.85095882]
[1759732619347,3.2078,4578.6,4578.5,0.4712]
[1759732619549,3.4288,4578.6,4578.5,1.63062]
[1759732619751,3.2078,4578.6,4578.5,1.63062]
[1759732620254,3.2078,4578.6,4578.5,42.43062]
[1759732620453,11.51940376,4578.9,4578.8,1.44749]
[1759732620843,11.74040376,4578.9,4578.8,1.44749]
[1759732621453,11.82910376,4578.9,4578.8,1.44749]
[1759732621859,11.51940376,4578.9,4578.8,1.44749]
[1759732622048,11.74040376,4578.9,4578.8,1.44749]
[1759732622245,11.74040376,4578.9,4578.8,1.0545]
[1759732622553,11.02388376,4578.9,4578.8,1.0545]
[1759732623153,11.24488376,4578.9,4578.8,1.0545]
[1759732623360,11.02388376,4578.9,4578.8,41.8545]
[1759732623858,11.70128376,4578.9,4578.8,41.8545]
[1759732624654,11.70128376,4578.9,4578.8,40.8]
[1759732625245,11.48028376,4578.9,4578.8,41.273]
[1759732625449,11.70128376,4578.9,4578.8,41.273]
[1759732626056,11.24488376,4578.9,4578.8,41.273]
[1759732626357,11.70128376,4578.9,4578.8,41.273]
[1759732627353,11.952171,4578.9,4578.8,41.273]
[1759732627555,12.173171,4578.9,4578.8,41.273]
[1759732628257,11.70128376,4578.9,4578.8,41.273]
[1759732628558,17.16905608,4578.9,4578.8,40.8]
[1759732628857,17.16905608,4578.9,4578.0,3.39269882]
[1759732628858,0.3097,4578.2,4578.1,0.7664]
[1759732629056,1.44175,4578.1,4578.0,0.00179882]
[1759732629268,5.11739535,4578.1,4578.0,0.00179882]
[1759732629558,12.00637376,4578.9,4578.5,0.9495]
[1759732629559,3.5175,4578.6,4578.5,0.9495]
[1759732629756,4.20650228,4578.6,4578.5,1.2376]
[1759732629958,4.88211228,4578.6,4578.5,1.2376]
[1759732630261,4.94550228,4578.6,4578.5,1.0545]
[1759732630560,4.72450228,4578.6,4578.5,1.0545]
[1759732630753,4.94550228,4578.6,4578.5,0.7664]
[1759732631150,1.0487,4578.1,4578.0,40.80179882]
[1759732631359,4.94550228,4578.1,4578.0,40.80179882]
[1759732631555,10.33855228,4578.1,4578.0,40.80179882]
[1759732631763,10.33855228,4578.1,4578.0,0.00179882]
[1759732633860,10.11755228,4578.1,4578.0,0.00179882]
[1759732634061,10.33855228,4578.1,4578.0,0.00179882]
[1759732635967,10.11755228,4578.1,4578.0,0.00179882]
[1759732636267,10.33855228,4578.1,4578.0,0.00179882]
[1759732639062,9.72450228,4578.1,4578.0,0.00179882]
[1759732639267,4.26810228,4578.1,4578.0,1.25739882]
[1759732639569,4.93240228,4578.1,4578.0,0.76869882]
[1759732640667,4.93240228,4578.1,4578.0,0.00179882]
[1759732641065,9.93240228,4578.1,4578.0,0.00179882]
[1759732642161,4.71240228,4578.1,4578.0,0.00179882]
[1759732642365,4.93340228,4578.1,4578.0,0.00179882]
[1759732642560,3.67580228,4578.1,4578.0,0.32389882]
[1759732642771,4.50100228,4578.1,4578.0,0.76869882]
[1759732643165,4.94530228,4578.1,4578.0,0.76869882]
[1759732643369,4.28000228,4578.1,4578.0,1.25739882]
[1759732643570,4.94530228,4578.1,4578.0,1.06859882]
[1759732643872,4.94530228,4578.1,4578.0,0.00179882]
[1759732644178,9.94530228,4578.1,4578.0,0.00179882]
[1759732644374,0.6042,4577.4,4577.3,40.8]
[1759732644577,1.0485,4577.3,4577.2,0.4448]
[1759732644770,1.51650228,4577.3,4577.2,0.4448]
[1759732645073,1.51650228,4577.3,4577.2,41.2448]
[1759732645273,1.0485,4577.3,4577.2,41.2448]
[1759732645575,1.51626164,4577.3,4577.2,0.00239654]
[1759732647670,1.51626164,4577.3,4576.1,0.4448]
[1759732647875,0.3082,4576.2,4576.1,1.0668]
[1759732648071,0.5292,4576.2,4576.1,1.0668]